Cogmind - Beta 12 @@@ ROGUE MODE // 2023.03.29 @ 14:43:47 Player: Rohain Result: Destroyed by G-47 Trooper with Particle Gun Performance ------------- Evolutions (0) 0 Regions Visited (2) 400 Robots Destroyed (14) 70 Value Destroyed (478) 478 Prototype IDs (0) 0 Alien Tech Used (0) 0 Bonus (0) 0 TOTAL SCORE: 948 Bonus ------- None Cogmind --------- Core Integrity 0/250 Matter 290/300 Energy 238/250 System Corruption 0% Temperature Cool (9) Movement Walking (120) Location -10/Mines Parts ------- > --- POWER (1) -------- Ion Engine > --- PROPULSION (2) --- Aluminum Leg Aluminum Leg > --- UTILITY (2) ------ Improved Heat Sink Medium Storage Unit > --- WEAPON (2) ------- Beam Cannon > --- INVENTORY (10) --- Light Treads Aluminum Leg Aluminum Leg Aluminum Leg Aluminum Leg Heat Sink Heat Sink Targeting Computer Grenade Launcher Peak State ------------ > --- POWER ------------ Ion Engine > --- PROPULSION ------- Aluminum Leg Aluminum Leg > --- UTILITY ---------- Improved Heat Sink Medium Storage Unit > --- WEAPON ----------- Particle Gun > --- INVENTORY -------- Ion Engine Light Treads Aluminum Leg Aluminum Leg Aluminum Leg Aluminum Leg Heat Sink Heat Sink Targeting Computer Grenade Launcher [Rating: 10] Favorites ----------- Power Ion Engine Engine Ion Engine Propulsion Aluminum Leg Leg Aluminum Leg Utility Medium Storage Unit Device Heat Sink Storage Medium Storage Unit Weapon Medium Laser Energy Gun Medium Laser Energy Cannon Beam Cannon Ballistic Gun Light Assault Rifle Build | -11 -10 -10 ------- Run | Jun Mat Min Slots Evolved . | . . . Power . | . . . Propulsion . | . . . Utility . | . . . Weapon . | . . . Parts Attached 25 | 6 13 6 Power 4 | 1 2 1 Engine 4 | 1 2 1 Core . | . . . Reactor . | . . . Propulsion 9 | 2 5 2 Treads . | . . . Leg 9 | 2 5 2 Wheel . | . . . Hover . | . . . Flight . | . . . Utility 4 | 1 2 1 Device 2 | . 1 1 Storage 2 | 1 1 . Processor . | . . . Hackware . | . . . Protection . | . . . Artifact . | . . . Weapon 8 | 2 4 2 Energy Gun 4 | 1 2 1 Energy Cannon 1 | . . 1 Ballistic Gun 3 | 1 2 . Ballistic Cannon . | . . . Launcher . | . . . Special Weapon . | . . . Impact Weapon . | . . . Slashing Weapon . | . . . Piercing Weapon . | . . . Special Melee Weapon . | . . . Unidentified Prototypes . | . . . Parts Lost 6 | . 1 5 Power 1 | . . 1 Propulsion 1 | . . 1 Utility . | . . . Weapon 4 | . 1 3 Highest Loss Streak 3 | . 1 3 To Critical Strikes . | . . . Average Slot Usage (%) 90 | . 92 85 Engine 13 | . 14 12 Leg 28 | . 28 28 Device 9 | . 7 14 Storage 14 | . 14 14 Energy Gun 14 | . 16 9 Ballistic Gun 9 | . 11 5 Naked Turns . | . . . Heaviest Build 20 | 13 20 19 Greatest Support 20 | 20 20 20 Greatest Overweight (x) 2 | 2 . . Average Overweight (x) . | . . . Largest Inventory Capacity 10 | 8 10 10 Average Capacity 9 | 6 8 10 Most Carried 10 | 4 10 10 Average Carried 8 | 2 8 9 Final Capacity 10 | 8 10 10 Final Carried 10 | 4 10 9 Class Distribution -------------------- 63% | Scavenger-Mutant 36% | Mutant Dominant Class ---------------- Scavenger-Mutant | -10/Materials Scavenger-Mutant | -10/Mines Resources | -11 -10 -10 ----------- Run | Jun Mat Min Matter Collected 449 | 248 131 70 Remotely . | . . . Salvage Created 592 | . 429 163 Parts 26 | . 22 4 Haulers Intercepted 1 | . 1 . Recyclers Shooed . | . . . Parts Field Recycled . | . . . Retrieved Matter . | . . . Parts Self-Destructed . | . . . Prevented . | . . . Kills | -11 -10 -10 ------- Run | Jun Mat Min Combat Hostiles Destroyed 12 | . 8 4 Guns 12 | . 8 4 Classes Destroyed 3 | . 3 . Hauler 1 | . 1 . Watcher 1 | . 1 . Grunt 12 | . 8 4 Best Kill Streak 2 | . 2 2 Combat Bots Only 2 | . 2 2 Max Kills in Single Turn 1 | . 1 1 Gunslinging . | . . . Exploded . | . . . Melee . | . . . Uniques/NPCs Destroyed . | . . . Combat | -11 -10 -10 -------- Run | Jun Mat Min Damage Taken 1260 | . 460 800 Core 251 | . 83 168 Absorbed by Shields . | . . . Core Remaining (%) 100 | 100 . . Volleys Fired 58 | . 30 28 Largest 2 | . 2 2 Hottest 115 | . 115 70 Shots Fired 95 | . 58 37 Gun 86 | . 58 28 Cannon 9 | . . 9 Launcher . | . . . Special . | . . . Kinetic 28 | . 19 9 Thermal 67 | . 39 28 Explosive . | . . . Electromagnetic . | . . . Robot Hit Streak 12 | . 12 7 Robot Miss Streak 3 | . 3 3 Penetration Max . | . . . Secondary Targets 2 | . 2 . Max Gunslinging Chain 1 | . 1 . Shots Hit Robots 63 | . 37 26 Core Hits 30 | . 21 9 Critical Kills . | . . . Critical Parts Destroyed . | . . . Critical Strikes 2 | . 2 . Burn 2 | . 2 . Melee Attacks . | . . . Impact . | . . . Slashing . | . . . Piercing . | . . . Sneak Attacks . | . . . Combat Hostiles . | . . . Follow-up Attacks . | . . . Damage Inflicted 783 | . 421 362 Guns 674 | . 416 258 Cannons 104 | . . 104 Explosions . | . . . Melee . | . . . Ramming 5 | . 5 . Kinetic 144 | . 86 58 Thermal 634 | . 330 304 Explosive . | . . . Electromagnetic . | . . . Impact . | . . . Slashing . | . . . Piercing . | . . . Highest Corruption . | . . . Average Corruption . | . . . Corruption Purged . | . . . Corruption Blocked . | . . . Overload Shots . | . . . Overflow Damage . | . . . Projectiles . | . . . Explosions . | . . . Melee . | . . . Knockbacks . | . . . Impact . | . . . Kinetic . | . . . Secondary . | . . . Self-Inflicted Damage . | . . . Shots . | . . . Rammed . | . . . Targets Rammed 1 | . 1 . Kicked 1 | . 1 . Crushed . | . . . Highest Temperature 143 | . 143 74 Average Temperature 42 | . 55 16 Received Heat Transfer 750 | . 273 477 Siege Activations . | . . . Robots Corrupted . | . . . Combat Hostiles . | . . . Parts Fried . | . . . Impact Corruptions . | . . . Robots Melted . | . . . Combat Hostiles . | . . . Parts Melted 4 | . 4 . Heat Transferred 1850 | . 1110 740 Parts Sabotaged . | . . . Parts Stolen . | . . . Parts Stripped . | . . . Power Chain Reactions . | . . . Missiles Intercepted . | . . . Alert | -11 -10 -10 ------- Run | Jun Mat Min Peak Influence 230 | . 230 83 Initial 13 | . . 13 Average 58 | . 74 39 Maximum Alert Level 1 | . 1 . Low Security (%) 97 | 100 96 100 Level 1 2 | . 3 . Level 2 . | . . . Level 3 . | . . . Level 4 . | . . . Level 5 . | . . . High Security . | . . . Max Security . | . . . Squads Dispatched 1 | . 1 . Investigation . | . . . Extermination . | . . . Reinforcement 1 | . 1 . Assault . | . . . Garrison . | . . . Intercept . | . . . Searches Triggered . | . . . Construction Impeded . | . . . Haulers Reinforced . | . . . Active Scanning Responses . | . . . Cargo Convoy Interrupts . | . . . Stealth | -11 -10 -10 --------- Run | Jun Mat Min Distress Signals 2 | . 2 . Communications Jammed . | . . . Distress Signals . | . . . Times Spotted 21 | . 15 6 Peak Tracking Total 3 | . 3 3 Tactical Retreats . | . . . Traps | -11 -10 -10 ------- Run | Jun Mat Min Traps Triggered 1 | . 1 . Indirectly . | . . . Trap Hack Attempts . | . . . Triggered . | . . . Disarmed . | . . . Reprogrammed . | . . . Reused . | . . . Traps Extracted . | . . . Installed . | . . . Triggered . | . . . Machines | -11 -10 -10 ---------- Run | Jun Mat Min Machines Disabled . | . . . Max in Single Turn . | . . . Machines Repaired . | . . . Machines Sabotaged . | . . . Overloaded Fab Kills . | . . . Hacking | -11 -10 -10 --------- Run | Jun Mat Min Machines Accessed 5 | . 5 . Terminals 5 | . 5 . Fabricators . | . . . Repair Stations . | . . . Recycling Units . | . . . Scanalyzers . | . . . Garrison Access . | . . . Total Hacks 14 | . 14 . Successful 5 | . 5 . Failed 9 | . 9 . Catastrophic 1 | . 1 . Database Lockouts . | . . . Manual 7 | . 7 . Terminals 14 | . 14 . Fabricators . | . . . Repair Stations . | . . . Recycling Units . | . . . Scanalyzers . | . . . Garrison Access . | . . . Terminal Hacks 2 | . 2 . Robot Analysis 1 | . 1 . Branch Access Points 1 | . 1 . Fabricator Hacks . | . . . Repair Station Hacks . | . . . Recycling Unit Hacks . | . . . Scanalyzer . | . . . Garrison Access Hacks . | . . . Unauthorized Hacks 3 | . 3 . Terminals 3 | . 3 . Botnet 3 | . 3 . Fabricators . | . . . Repair Stations . | . . . Recycling Units . | . . . Scanalyzers . | . . . Garrison Access . | . . . Data Cores Recovered . | . . . Used . | . . . Hacking Detections 5 | . 5 . Full Trace Events 1 | . 1 . Feedback Events . | . . . Feedback Blocked . | . . . Robot Schematics Acquired . | . . . Robots Built . | . . . Authchips . | . . . Time . | . . . Total Robot Build Rating . | . . . Part Schematics Acquired . | . . . Parts Built . | . . . Authchips . | . . . Time . | . . . Total Part Build Rating . | . . . Parts Repaired . | . . . Time . | . . . Parts Recycled . | . . . Recycled Matter . | . . . Retrieved Matter . | . . . Retrieved Components . | . . . Parts Scanalyzed . | . . . Part Schematics Acquired . | . . . Parts Damaged . | . . . Bothacking | -11 -10 -10 ------------ Run | Jun Mat Min Used RIF Installer . | . . . Robots Hacked . | . . . Non-combat . | . . . Combat . | . . . Robot Hacks Applied . | . . . Relay Couplers Released . | . . . Fabnet Peak Effective % . | . . . Robots Rewired . | . . . Allies Hacked . | . . . Hacks Repelled . | . . . Allies | -11 -10 -10 -------- Run | Jun Mat Min Total Allies . | . . . Largest Group . | . . . Highest-Rated Group . | . . . Highest-Rated Ally . | . . . Total Orders . | . . . Ally Attacks . | . . . Total Damage . | . . . Kills . | . . . Allies Corrupted . | . . . Allies Melted . | . . . Intel | -11 -10 -10 ------- Run | Jun Mat Min Robot Analysis Total 1 | . 1 . Derelict Logs Recovered 1 | . . 1 Drone Launches . | . . . Drone Recoveries . | . . . Exploration | -11 -10 -10 ------------- Run | Jun Mat Min Turns Passed 957 | 85 620 252 Spaces Moved 613 | 61 405 147 Core 18 | 18 . . Treads . | . . . Legs 595 | 43 405 147 Wheels . | . . . Hover . | . . . Flight . | . . . Fastest Speed 50 | 50 120 120 Average Speed 119 | 118 120 120 Slowest Speed 150 | 150 120 120 Overloaded Moves . | . . . Propulsion Burnouts . | . . . Robots Hopped . | . . . Cave-ins Triggered . | . . . Exploration Rate (%) 35 | 3 64 39 Regions Visited 2 Branch Regions 1 Pre-discovered Areas . | . . . Known Exits Taken 1 | . 1 . Unknown Exits Taken 1 | 1 . . Scrap Searched 1 | . . 1 Spaces Dug . | . . . Terrain Destroyed . | . . . Melee . | . . . Projectile . | . . . AOE . | . . . Terrain Rammed . | . . . Walls Destroyed . | . . . Machines Disabled . | . . . Actions | -11 -10 -10 --------- Run | Jun Mat Min Total 748 | 72 489 187 Wait 28 | . 22 6 Move 611 | 60 404 147 Hop . | . . . Pick Up 15 | 6 9 . Fast Attach 8 | 4 3 1 Attach 8 | 2 3 3 Detach 1 | . 1 . Swap 9 | . 7 2 Drop 9 | . 9 . Fire 58 | . 30 28 Melee . | . . . Ram . | . . . Kick 1 | . 1 . Crush . | . . . Escape Stasis . | . . . Rewire . | . . . Trap . | . . . Miscellaneous . | . . . Route ------- -11/Junkyard -10/Materials (discovered 2 exits: [*Mat] / *Min) -10/Mines (discovered 1 exit: [*Mat]) History --------- Turn | Location | Event 8 | -11/Junkyard | Discovered new exit (range 16) 86 | -11/Junkyard | Entered Materials 305 | -10/Materials | Build established: Mutant 540 | -10/Materials | Identified exit to Mines 602 | -10/Materials | Discovered new exit (range 4) 650 | -10/Materials | Build established: Scavenger-Mutant 706 | -10/Materials | Entered Mines 740 | -10/Mines | Discovered new exit (range 13) 766 | -10/Mines | Found a hidden stash of uninstalled traps 790 | -10/Mines | Core integrity fell below 50% 844 | -10/Mines | Lost 3 parts (1n2w) 874 | -10/Mines | Core integrity fell below 20% 958 | -10/Mines | Destroyed by G-47 Trooper with Particle Gun Last Messages --------------- 00822_ Acquired 40 matter. 00826_ U-05 Engineer suffers critical hit (Burn). 00826_ U-05 Engineer destroyed. 00832_ Acquired derelict log, extracted data. Data stored: Storage entrances (x1). 00848_ G-34 Mercenary destroyed. 00856_ G-47 Trooper destroyed. 00863_ Acquired 20 matter. 00871_ Particle Gun destroyed. 00883_ Ion Engine destroyed. 00886_ Critical hit (Burn: +37). 00936_ Searching scrap... 00936_ Found Beam Cannon. 00936_ Found Tractor Beam. 00936_ Found Heat Sink. 00936_ Found Welding Torch. 00936_ Found 24 Matter. 00937_ Acquired 10 matter. 00939_ Acquired Beam Cannon. 00953_ G-34 Mercenary destroyed. Map ----- +----------------------------------------------------+ | ??????????????????????## ## ##??? | | ???????????????????????####?## #??? | | ????????????????????????????##|! #??? | | ????????????????????????????#%& & ##??? | | ????????????????????????????# %&|##???? | | ????????????????????????????# !#????? | | ????????????????????????????# %%##????# | | ????????????????????????????# ##????## | | ????????????????????????????# #?????# | | ????????????????????????????# #?????# | | ????????????????????????????# #?????## | | ????????????????????###?????# ###????# | | ???????????????????## ###### #????? | | ???????????????????# #????? | | ???????????????????# ####### #????? | | ???????????????????## ##????# #????? | | ????????????????????## ##???# ###### | | ?????????????????????# #???# %% # | | ?????????????????????# ##??### ## # | | ????????????????????## #????# ## # | | ???????????????????## #????# ## # | | ??????????????????## ##????# ### | | ???????????######## ##?????# #? | | ???????????# =g= ####??????# #? | | ???????????#!!! * ##????????## ### | | ???????????#%|@ ##????????## ## | | ???????????#! !!! ##????????## ## | | ???????????# !! ##???????### #?# | | ???????????# #???????## #?? | | ???????????# #???????# | | ???????????## ##???????# #### | | ????????????######????????## ####??? | | ???????????????????????????######?????? | | ??????????????????????????????????????? | | ??????????????????????????????????????? | | ??????????????????????????????????????? | | ??????????????????????????????????????? | | ??????????????????????????????????????? | | | | | | | | | | | | | | | | | | | | | | | | | +----------------------------------------------------+ Best States ------------- Heat Dissipation 39 Energy Generation 10 Energy Capacity 250 Matter Stores 300 Matter Capacity 300 Sight Range 16 Terrain Scan Density 10 Evasion (%) 55 Item Schematics ----------------- None Robot Schematics ------------------ None Fabricated ------------ Nothing Alien Tech Used ----------------- None Achievements -------------- None Challenges ------------ None Game ------ Seed CannonDroneStorm Manual? 0 Play Time 00:08:29 Cumulative 30.8 hours Start 2023.03.29 @ 14:37:08 End 2023.03.29 @ 14:43:47 Sessions 1 Manual Loads 0 Difficulty Rogue Special Mode None Game No. 45 Rogue 29 Adventurer 16 Explorer 0 Win Type - Total 0 Types 0/0/0/0/0/0/0/0/0 Lore% 20 Gallery% 35 Achievement% 32 Wizard Run 0 Options --------- ASCII 0 Keyboard 0 Movement Mouse Keybinds 0 Fullscreen 0 Font 18/SmallcapsGlow Map View 66x50 Tactical HUD 1 Map Filters NONE Filters NONE Steam X RUN: 0b61ce38-629c-4821-9175-bc38a72902bb